[Event "Chhattisgarh Masters GM 2022"]
[Site "Chhattisgarh"]
[Date "2022.09.19"]
[Round "1.14"]
[White "Tiwari, Arjun"]
[Black "Srinath, Rao S.V."]
[Result "1-0"]
[ECO "A03"]
[WhiteElo "2034"]
[BlackElo "2317"]
[Annotator "TA"]
[PlyCount "77"]
[EventDate "2022.09.19"]
[EventCountry "IND"]
[SourceTitle "playchess.com"]
[Source "ChessBase"]
[SourceQuality "1"]
[TimeControl "5400+30"]

{[%evp 10,77,2,-1,0,0,4,2,-11,0,47,37,44,32,41,26,30,30,47,31,55,44,83,66,57,57,73,75,60,66,97,68,80,37,70,50,85,75,176,182,215,202,240,248,233,223,285,269,298,283,293,281,303,279,313,295,356,340,662,629,1029,982,1989,2045,29977,29978,29978,29978,29973,29972]} 1. f4 {[%emt 0:00:05]} d5 {[%emt 0:01:46]} 2. Nf3 {[%emt 0:00:08]} g6 {[%emt 0:00:24]} 3. g3 {[%emt 0:01:01]} Bg7 {[%emt 0:00:06]} 4. Bg2 {[%emt 0:00:04]} c5 {[%emt 0:01:18]} 5. O-O {[%emt 0:00:13]} Nc6 {[%emt 0:00:04]} 6. d3 {[%emt 0:00:18] CPLX 2.0} Nh6 {[%emt 0:06:28] CPLX 2.0 1 (Ng8-f6) (=1). A03: Bird's Opening with 1...d5.} 7. e4 {[%emt 0:06:36] BESTDEEP} dxe4 {[%emt 0:12:15] BESTDEEP} (7... O-O {is interesting.} 8. c3 dxe4 9. dxe4 Qxd1 10. Rxd1 b6) 8. dxe4 {[%emt 0:00:04] RECAPT} Qxd1 {[%emt 0:06:29] CPLX 2.3 0 (0-0) (=0). The position is equal.} 9. Rxd1 {[%emt 0:00:04] RECAPT} Nd4 {[%emt 0:00:47] CPLX 2.0 47 (b7-b6) (=12)} (9... b6 $11 {deserves consideration.}) 10. Nxd4 $1 $14 {[%emt 0:08:48] CPLX 2.1} Bxd4+ {[%emt 0:01:45] RECAPT} 11. Kf1 $1 {[%emt 1:18:39] [#] DEEPSTRONG} Bd7 $146 {[%emt 0:07:40] CPLX 2.1 9 (b7-b6) (=10)} ({Predecessor:} 11... Bg4 12. Rd3 Bd7 13. Na3 O-O-O 14. h3 Bg7 15. g4 c4 16. Rg3 b5 17. c3 f6 {1-0 (44) Rodriguez Vila,A (2547)-Della Morte,G (2345) Villa Martelli 2007}) 12. c3 {[%emt 0:00:00] CPLX 2.4 15 (a2-a4) (=2)} Bg7 {[%emt 0:00:25] BESTDEEP} 13. Be3 {[%emt 0:00:00] BESTDEEP} Rc8 {[%emt 0:05:41] CPLX 2.0 17 (b7-b6) (=9)} 14. a4 {[%emt 0:00:00][%cal Ba2a4,Ba4a5][%mdl 32] CPLX 2.0 16 (h2-h3) (=3)} f6 {[%emt 0:06:45] CPLX 2.0 24 (e7-e5) (=11)} 15. Nd2 {[%emt 0:00:00] CPLX 2.0 11 (c3-c4) (=4)} Be6 {[%emt 0:05:16] CPLX 2.0 39 (0-0) (=14)} 16. a5 {[%emt 0:00:00] CPLX 2.0 17 (b2-b4) (=5)} O-O {[%emt 0:02:09] BESTDEEP} 17. b4 {[%emt 0:00:00] CPLX 2.0} cxb4 {[%emt 0:02:29] CPLX 2.0} 18. cxb4 {[%emt 0:00:00] RECAPT} a6 {[%emt 0:00:05] BESTDEEP} 19. Bc5 {[%emt 0:00:00] CPLX 2.0} Kf7 {[%emt 0:05:10] CPLX 2.0 31 (Rf8-d8) (=12)} 20. h3 {[%emt 0:00:00] CPLX 2.2 29 (Ra1-c1) (=6)} Rfd8 {[%emt 0:00:40] EASY} 21. Ke2 {[%emt 0:00:00] CPLX 2.4 43 (Kf1-f2) (=8)} (21. Kf2 {looks sharper.} Ke8 22. g4 Rd3 23. f5) 21... Bd7 {[%emt 0:01:42] CPLX 3.0 33 (Kf7-e8) (=13)} 22. Bf1 {[%emt 0:00:00][%cal Bg2f1,Bf1c4,Bc4b3][%mdl 32] CPLX 2.1 20 (Ke2-f2) (=9)} Bf8 {[%emt 0:05:28] CPLX 2.1 35 (Bd7-b5) (=14)} 23. Ke3 {[%emt 0:00:00] White now steadily converts the win. CPLX 2.0 10 (Nd2-c4) (=9)} e6 {[%emt 0:00:51] [#] CPLX 2.2 101 (e7-e5) (=19)} (23... e5 $16 {was worth a try.}) 24. Nb3 $1 $18 {[%emt 0:00:00] CPLX 2.5=>BLUNDERREACT} Bc6 {[%emt 0:05:46] CPLX 2.7 33 (Bf8-e7) (=19)} 25. Bc4 {[%emt 0:00:00] CPLX 4.4 13 (Rd1xd8) (=9)} Rxd1 {[%emt 0:01:22] CPLX 5.1 38 (Rd8-e8) (=20)} 26. Rxd1 {[%emt 0:00:00] RECAPT} Ba4 {[%emt 0:00:38] CPLX 2.5} 27. Rd3 {[%emt 0:00:00] CPLX 2.9} Bxb3 {[%emt 0:05:47] CPLX 2.6 62 (Rc8-c7) (=21)} 28. Bxb3 {[%emt 0:00:00] Black must now prevent Rd7+. RECAPT} (28. Rxb3 Ng8 $16) 28... Bxc5+ {[%emt 0:02:08] CPLX 2.3 29 (Rc8-c7) (=22)} 29. bxc5 {[%emt 0:00:00][%mdl 4096] Endgame aiming for Rd7+. KRB-KRN. RECAPT} Ke7 {[%emt 0:01:06] Inhibits Rd7+. CPLX 2.0 10 (Kf7-e8) (=21)} 30. Rd6 {[%emt 0:01:58] EASY} Rxc5 {[%emt 0:00:24] CPLX 2.3 22 (e6-e5) (=21)} 31. Rxe6+ {[%emt 0:00:10] EASY} Kd8 {[%emt 0:00:18] [#] And now ...Rc3+ would win. CPLX 2.0 34 (Ke7-d7) (=22)} 32. Rb6 {[%emt 0:02:35] BESTDEEP} Rxa5 {[%emt 0:02:50] CPLX 2.0 61 (Kd8-c7) (=23)} 33. Rxb7 {[%emt 0:00:37] CPLX 2.0} Ra3 $2 {[%emt 0:00:52] CPLX 2.0 322 (g6-g5) (=34)} (33... g5 34. Be6 (34. Rxh7 Ra3 $16) 34... gxf4+ 35. Kxf4 Re5) 34. Kd4 {[%emt 0:01:00] CPLX 2.1=>BLUNDERREACT} Kc8 {[%emt 0:00:40] BEVAL 400 (Kd8-e8) (=46)} 35. Bd5 {[%emt 0:00:19] EVAL} Ra4+ {[%emt 0:05:24] BEVAL 400 (f6-f5) (=58)} 36. Kc5 {[%emt 0:00:21] White threatens Kd6 and mate. BEVAL} Nf5 {[%emt 0:01:37] MISS-Ra4-a5 400 (Ra4-a5) (=69)} 37. exf5 {[%emt 0:01:27] EASY. White mates.} Ra5+ {[%emt 0:00:04] RELBLUND} 38. Kc6 {[%emt 0:00:07] CPLX 2.0} Rxd5 {[%emt 0:00:06] EASY} 39. Rxh7 {[%emt 0:00:06] Weighted Error Value: White=0.07 (flawless) /Black=0.48} 1-0

[Event "Chhattisgarh Masters GM 2022"]
[Site "Chhattisgarh"]
[Date "2022.09.19"]
[Round "1.15"]
[White "Nguyen, Duc Hoa"]
[Black "Aishwin Daniel"]
[Result "1-0"]
[ECO "C11"]
[WhiteElo "2365"]
[BlackElo "2085"]
[Annotator "TA"]
[PlyCount "79"]
[EventDate "2022.09.19"]
[EventCountry "IND"]
[SourceTitle "playchess.com"]
[Source "ChessBase"]
[SourceQuality "1"]
[TimeControl "5400+30"]

{[%evp 20,79,10,10,7,11,16,16,29,0,0,0,8,0,23,0,14,-36,-31,-123,-96,-185,-181,-282,-281,-291,-272,-274,-58,-87,0,-6,76,66,66,66,66,66,66,0,66,70,324,315,329,170,308,311,500,452,509,485,860,828,1092,1041,1558,1559,1575,1632,2003,1668]} 1. e4 {[%emt 0:00:07]} e6 {[%emt 0:00:29]} 2. d4 {[%emt 0:00:34]} d5 {[%emt 0:00:19]} 3. Nc3 {[%emt 0:00:12]} Nf6 {[%emt 0:00:50]} 4. e5 {[%emt 0:00:19]} Nfd7 {[%emt 0:01:03]} 5. f4 {[%emt 0:00:09]} c5 {[%emt 0:00:57]} 6. Nf3 {[%emt 0:00:10]} Nc6 {[%emt 0:01:01]} 7. Be3 {[%emt 0:00:07]} cxd4 {[%emt 0:01:18]} 8. Nxd4 {[%emt 0:00:15]} Qb6 {[%emt 0:01:19]} 9. Qd2 {[%emt 0:39:37]} Qxb2 {[%emt 0:02:52]} 10. Rb1 {[%emt 0:00:18]} Qa3 {[%emt 0:00:22]} 11. Bb5 $1 {[%emt 0:03:14] CPLX 2.9} Nxd4 {[%emt 0:00:28] C11: French: Classical System: 4 e5 and 4 Bg5 dxe4.} 12. Bxd4 {[%emt 0:00:08] RECAPT} (12. Qxd4 a6 13. Bxd7+ Bxd7 14. Rxb7 Rc8 $17) 12... a6 {[%emt 0:00:34] EASY} 13. Bxd7+ {[%emt 0:05:10] BESTDEEP} Bxd7 {[%emt 0:00:15] RECAPT. The position is equal.} 14. Rxb7 {[%emt 0:01:08] MISS-Rb1-b3 29 (Rb1-b3) (=7)} (14. Rb3 $5 {[%cal Rb3a3]} Qe7 15. Rxb7 $11) 14... Bb4 {[%emt 0:10:18] BESTDEEP} 15. O-O {[%emt 0:01:42] And now Rb1 would win. CPLX 3.8} Rc8 $132 {[%emt 0:07:25][%cal Rb4c3][%mdl 2048] Black is fighting back. CPLX 3.7 8 (Bd7-c8) (=2)} 16. Rf3 {[%emt 0:05:01][%cal Of4f5] CPLX 3.8} Bc6 {[%emt 0:07:35] [#] CPLX 3.8 23 (Qa3-a5) (=5)} 17. Rb6 $146 {[%emt 0:01:36] CPLX 3.7 23 (Rb7-a7) (=7)} ({Predecessor:} 17. Ra7 O-O 18. f5 exf5 19. e6 Bc5 20. Rxf7 Rxf7 21. exf7+ Kxf7 22. Ne2 Bxd4+ 23. Nxd4 {½-½ (47) Bosiocic,M (2555)-Pijpers,A (2436) Bol 2015}) 17... O-O {[%emt 0:04:12][%cal Oc6b5] CPLX 3.2 14 (Qa3-a5) (=6)} 18. h3 {[%emt 0:06:51] CPLX 3.1 50 (f4-f5) (=13)} ({White should try} 18. f5 $11) 18... Qa5 $15 {[%emt 0:07:28] BESTDEEP} 19. Qf2 {[%emt 0:04:29] RELBLUND 92 (Rf3-g3) (=22)} (19. Rg3 $15) 19... Bd7 {[%emt 0:09:13][%cal Rb4c3] This bishop pair is nice. CPLX 2.8 27 (Bc6-e8) (=8)} 20. Nd1 {[%emt 0:06:13] CPLX 2.7 89 (Rb6-b7) (=28)} (20. Rb7 $17) 20... Be1 $19 {[%emt 0:11:49] CPLX 2.8} 21. Qe2 {[%emt 0:09:58] MISSDEEP-Qf2-e3 101 (Qf2-e3) (=35)} (21. Qe3 $142) 21... Bb5 {[%emt 0:09:05] EASY} 22. Rxb5 {[%emt 0:00:16] BESTDEEP} axb5 {[%emt 0:01:17] RECAPT} 23. c3 {[%emt 0:00:04] [#] BESTDEEP} Rc4 $1 {[%emt 0:01:40] MISS-Be1-h4 216 (Be1-h4) (=22)} 24. f5 $1 $15 {[%emt 0:01:18] [#] DEEPSTRONG=>BLUNDERREACT} ({Reject} 24. g3 Ra8 $1 25. f5 h6 $1 $17) 24... Rxd4 {[%emt 0:04:40] RELBLUND 87 (Rf8-a8) (=27)} 25. cxd4 $11 {[%emt 0:00:22] RECAPT} Qd2 {[%emt 0:02:12] RELBLUND 82 (Be1-d2) (=30)} (25... Bd2 $11) 26. Kf1 $16 {[%emt 0:01:40][%cal Bg1f1,Bf1e2,Be2d3,Bd3c2,Bc2b3,Bb3b4][%mdl 32] Black must now prevent fxe6. CPLX 3.5=>BLUNDERREACT} Qxe2+ {[%emt 0:00:33] EASY} 27. Kxe2 {[%emt 0:00:05] RECAPT} Ba5 {[%emt 0:00:18] CPLX 2.1} 28. fxe6 {[%emt 0:01:31] CPLX 2.0} fxe6 {[%emt 0:00:09] RECAPT} 29. Rxf8+ {[%emt 0:00:25] CPLX 2.0} Kxf8 $14 {[%emt 0:00:06][%mdl 4096] Endgame KB-KN. LEGAL} 30. Kd3 $1 {[%emt 0:00:09] aiming for Nc3. CPLX 2.0} Bb6 $2 {[%emt 0:07:46][%mdl 8192] [#] RELBLUND 254 (Ba5-e1) (=36)} (30... Be1 $1 $14) 31. Nc3 $1 $18 {[%emt 0:01:44] DEEPSTRONG=>BLUNDERREACT} b4 {[%emt 0:00:23] CPLX 2.0 14 (Kf8-e7) (=35)} 32. Ne2 {[%emt 0:00:21] CPLX 2.0 159 (Nc3-a4) (=25)} (32. Na4 $142 Bd8 33. Nc5) 32... Bd8 {[%emt 0:04:07] [#] CPLX 2.0 138 (Kf8-f7) (=39)} (32... Kf7 $142 33. Nf4 Bd8) 33. Kc2 $1 {[%emt 0:00:26] DEEPSTRONG=>BLUNDERREACT} Kf7 $2 {[%emt 0:00:52] CPLX 2.0 189 (Bd8-g5) (=46)} (33... Bg5 34. Kb3 Bd2) 34. Kb3 {[%emt 0:01:10] CPLX 2.0=>BLUNDERREACT. White is clearly winning.} Be7 {[%emt 0:00:40] CPLX 2.0 57 (Bd8-a5) (=46)} 35. Nf4 {[%emt 0:01:07] CPLX 2.0} h5 {[%emt 0:00:47] EVAL 375 (Be7-g5) (=59)} (35... Bg5 $142) 36. Nxh5 {[%emt 0:00:36] EVAL} Kg6 {[%emt 0:00:06] BEVAL 264 (Be7-g5) (=67)} 37. g4 {[%emt 0:00:07] BEVAL} Bg5 {[%emt 0:01:37] BEVAL 400 (Kg6-f7) (=80)} 38. Kxb4 {[%emt 0:00:17] BEVAL} Bd2+ {[%emt 0:00:23] BEVAL 16 (Kg6-f7) (=77)} 39. Kc5 {[%emt 0:00:40] BEVAL} Kh6 {[%emt 0:01:03] BEVAL 371 (Kg6-f7) (=87)} 40. Kd6 {[%emt 0:00:41] What a bad dream for Black.  Weighted Error Value: White=0.19 (very precise) /Black=0.67} 1-0

[Event "Chhattisgarh Masters GM 2022"]
[Site "Chhattisgarh"]
[Date "2022.09.19"]
[Round "1.15"]
[White "Omidi, Arya"]
[Black "Daakshin Arun"]
[Result "1-0"]
[ECO "E60"]
[WhiteElo "2309"]
[BlackElo "2022"]
[Annotator "TA"]
[PlyCount "83"]
[EventDate "2022.09.19"]
[EventCountry "IND"]
[SourceTitle "playchess.com"]
[Source "ChessBase"]
[SourceQuality "1"]
[TimeControl "5400+30"]

{[%evp 15,83,52,43,53,58,44,50,45,41,37,40,28,29,9,19,12,37,27,41,37,56,0,0,-9,22,15,20,10,26,5,90,84,111,97,97,95,90,83,223,223,247,243,349,361,832,820,935,928,922,917,2069,1959,1957,1596,1198,518,29991,29992,29992,29992,29992,29993,29995,29993,29995,29995,29996,29997,29997,29998]} 1. d4 {[%emt 0:00:03]} Nf6 {[%emt 0:00:06]} 2. Nf3 {[%emt 0:00:14]} g6 {[%emt 0:00:10]} 3. g3 {[%emt 0:00:06]} Bg7 {[%emt 0:00:06]} 4. Bg2 {[%emt 0:00:13]} O-O {[%emt 0:00:27]} 5. O-O {[%emt 0:00:05]} d6 {[%emt 0:00:13]} 6. c4 {[%emt 0:00:04]} c5 {[%emt 0:00:39]} 7. d5 {[%emt 0:00:13]} e6 {[%emt 0:00:48]} 8. dxe6 {[%emt 0:00:08]} Bxe6 {[%emt 0:00:38] RECAPT} 9. Ng5 $1 {[%emt 0:00:06] DEEPSTRONG. E60: King's Indian: Unusual lines and Fianchetto Variation without Nc3.} Bxc4 {[%emt 0:01:29] [#] aiming for ...Re8. BESTDEEP} 10. Bxb7 {[%emt 0:02:18] CPLX 2.6} Nbd7 {[%emt 0:00:40] CPLX 3.0 6 (Nb8-a6) (=2)} 11. Na3 {[%emt 0:15:44][%cal Bb1a3,Ba3c4,Bc4d6][%mdl 32] EASY. White is slightly better.} Rb8 $1 {[%emt 0:08:10] Strongly threatening ...Bxe2. DEEPSTRONG} 12. Nxc4 {[%emt 0:02:56] EASY} Rxb7 {[%emt 0:00:10] EASY} 13. Nxd6 {[%emt 0:01:31] BESTDEEP} Rb4 {[%emt 0:02:35] CPLX 3.1} 14. Nf3 {[%emt 0:02:33] Against Rd4. CPLX 3.1 20 (Qd1-c2) (=3)} (14. Qc2 {looks sharper.} Qe7 15. a3 Rb6 16. Nc4) 14... Qe7 {[%emt 0:08:16] BESTDEEP} 15. a3 {[%emt 0:03:23] CPLX 2.8} Rb6 {[%emt 0:02:32] CPLX 3.0 25 (Rb4-b8) (=4)} 16. Nc4 {[%emt 0:00:24] EASY} Re6 {[%emt 0:02:14] EASY} 17. Bf4 $36 {[%emt 0:19:21][%mdl 2048] Hoping for Ng5. White has good play. CPLX 2.4 4 (Nf3-g5) (=3)} Ne4 {[%emt 0:00:50] [#] Against Ng5. BESTDEEP} (17... Rxe2 $2 18. Bd6 (18. Be3 Rxe3 19. Nxe3 Nb6 $18) 18... Qe4 19. Nfd2 $18 (19. Bxf8 Qxf3 20. Bxg7 Kxg7 $16)) 18. Qc1 $146 {[%emt 0:14:57] RELBLUND 56 (Ra1-c1) (=8)} (18. Rc1 $14) ({Predecessor:} 18. Nfd2 Nxd2 19. Qxd2 Nb6 20. Nxb6 axb6 21. Bg5 Qe8 22. Be3 Qb5 23. Rab1 Rfe8 24. Rfd1 {1-0 (41) Darini,P (2159)-Kanmazalp,O (2264) Kemer 2007}) 18... Nb6 $11 {[%emt 0:04:04] CPLX 2.5} 19. Nxb6 {[%emt 0:09:59] CPLX 2.8} Rxb6 {[%emt 0:01:07] RECAPT 31 (a7xb6) (=5)} 20. Rb1 {[%emt 0:00:40] CPLX 2.6} Qe6 {[%emt 0:03:27] BESTDEEP} 21. Rd1 {[%emt 0:06:05][%cal Bf1d1,Bd1d4,Bd4c4][%mdl 32] CPLX 2.6 10 (Qc1-c2) (=7)} Re8 {[%emt 0:02:22][%cal Oe4f2] And now ...Nxf2! would win. CPLX 3.0 16 (h7-h5) (=6)} 22. Qc2 {[%emt 0:07:48] CPLX 3.0 21 (Bf4-e3) (=8)} c4 {[%emt 0:05:35] RELBLUND 85 (Bg7-f6) (=11)} (22... Bf6 $11 {keeps the balance.}) 23. Be3 $16 {[%emt 0:00:50] CPLX 3.1} Rb5 {[%emt 0:01:50] CPLX 3.1 27 (Rb6-b7) (=12)} 24. Bd4 {[%emt 0:02:44] CPLX 3.0 14 (Be3xa7) (=8)} Rh5 {[%emt 0:02:12] CPLX 3.1} 25. Bxg7 {[%emt 0:00:12] BESTDEEP} Kxg7 {[%emt 0:00:05] RECAPT} 26. Rd4 {[%emt 0:00:38] CPLX 3.2} Qf5 {[%emt 0:05:02] Loses the game. CPLX 3.3 140 (Rh5-c5) (=17)} (26... Rc5 $16) 27. Rxc4 $18 {[%emt 0:03:02] EASY} g5 {[%emt 0:00:57] CPLX 3.1 24 (Ne4-d6) (=18)} 28. Rf1 {[%emt 0:00:33] BESTDEEP} Re6 {[%emt 0:04:05] CPLX 2.9 106 (Rh5-h6) (=22)} (28... Rh6 {was worth a try.} 29. Nxg5 Nxg3 30. fxg3 Qxg5) 29. b4 {[%emt 0:00:19] BESTDEEP} Qg4 $2 {[%emt 0:03:28] EVAL 400 (Re6-e8) (=39)} (29... Re8 30. Rc5 Qf6) 30. Qb2+ {[%emt 0:00:37] EVAL} f6 {[%emt 0:02:07] EVAL 115 (Re6-f6) (=42)} 31. Qd4 {[%emt 0:01:52] EVAL} Re7 {[%emt 0:00:49] Prevents Qd7. EVAL} 32. Rfc1 {[%emt 0:00:16] White wants to mate with Rc7. EVAL} Kg6 {[%emt 0:02:44] BEVAL 400 (Qg4-d7) (=55)} 33. Rc7 {[%emt 0:01:16] BEVAL} Rxc7 {[%emt 0:01:56] BEVAL} 34. Rxc7 {[%emt 0:00:02] Threatening mate with Qd5. BEVAL} Qe6 {[%emt 0:01:55] Prevents Qd5. BEVAL 0 (Qg4-f5) (=51)} 35. Qd7 {[%emt 0:01:04] CPLX 4.4 400 (Rc7xa7) (=19)} (35. Rxa7 $142 Qe8 36. g4) 35... Qg8 {[%emt 0:01:17] MISS-Qe6xd7 400 (Qe6xd7) (=63)} (35... Qxd7 $18 36. Rxd7 Nc3 37. Rxa7 g4 38. Nh4+ Kh6) 36. g4 {[%emt 0:00:43] White mates.} Rh3 {[%emt 0:01:04]} 37. Qf5+ {[%emt 0:00:20]} Kh6 {[%emt 0:00:05]} 38. Qxe4 {[%emt 0:00:08]} a5 {[%emt 0:00:20]} 39. Kg2 {[%emt 0:00:09]} axb4 {[%emt 0:00:11]} 40. Kxh3 {[%emt 0:00:26]} bxa3 {[%emt 0:00:06]} 41. Qe7 {[%emt 0:00:22][%csl LRa3,LRf6]} Kg6 {[%emt 0:00:35] [#]} 42. Ne5+ $1 {[%emt 0:00:07] Weighted Error Value: White=0.36/Black=0.49} 1-0

[Event "Chhattisgarh Masters GM 2022"]
[Site "Chhattisgarh"]
[Date "2022.09.19"]
[Round "1.16"]
[White "Bharadia Yash"]
[Black "Panda Sambit"]
[Result "1-0"]
[ECO "B15"]
[WhiteElo "2085"]
[BlackElo "2363"]
[Annotator "TA"]
[PlyCount "103"]
[EventDate "2022.09.19"]
[EventCountry "IND"]
[SourceTitle "playchess.com"]
[Source "ChessBase"]
[SourceQuality "1"]
[TimeControl "5400+30"]

{[%evp 14,103,39,31,55,50,46,28,28,29,50,38,41,0,0,-8,-2,-10,0,0,-13,-56,0,0,24,42,95,52,122,54,81,50,148,66,80,78,87,91,113,93,88,55,104,99,116,44,85,91,139,95,117,109,112,129,148,154,160,150,184,147,255,177,174,175,155,131,240,241,229,236,247,247,279,277,424,416,415,406,432,398,535,520,588,599,606,595,594,566,647,647,764,735]} 1. e4 {[%emt 0:00:05]} c6 {[%emt 0:01:12]} 2. d4 {[%emt 0:00:16]} d5 {[%emt 0:00:08]} 3. Nc3 {[%emt 0:01:35]} dxe4 {[%emt 0:00:12]} 4. Nxe4 {[%emt 0:00:18]} Nf6 {[%emt 0:03:19]} 5. Nxf6+ {[%emt 0:00:12]} exf6 {[%emt 0:00:57]} 6. c3 {[%emt 0:00:11]} Bd6 {[%emt 0:00:07]} 7. Bd3 {[%emt 0:00:11]} O-O {[%emt 0:00:04]} 8. Qc2 {[%emt 0:00:09] Active counter play! CPLX 3.2 8 (Ng1-e2) (=8)} h5 {[%emt 0:00:08] MISS-Rf8-e8 24 (Rf8-e8) (=24). B15: Caro-Kann: 3 Nc3: 3...g6 and 3...dxe4 4 Nxe4 Nf6 5 Nxf6+ exf6.} 9. Ne2 {[%emt 0:00:17] CPLX 3.0} Re8 {[%emt 0:00:05] CPLX 2.1} 10. Be3 {[%emt 0:01:05] CPLX 2.5 18 (0-0) (=9)} Nd7 {[%emt 0:00:06] BESTDEEP. White has an edge.} 11. O-O-O {[%emt 0:00:21] BESTDEEP} b5 {[%emt 0:02:23] CPLX 2.4 21 (Nd7-f8) (=11)} 12. Ng3 {[%emt 0:11:52] CPLX 2.5 12 (d4-d5) (=8)} Nb6 {[%emt 0:01:17] BESTDEEP} 13. Nxh5 {[%emt 0:12:05] CPLX 2.7 41 (Rd1-e1) (=13)} Bg4 {[%emt 0:00:04][%csl LRd1,LRh5] EASY} 14. Be2 {[%emt 0:00:36] CPLX 4.3 8 (Nh5-g3) (=12)} Bxe2 {[%emt 0:00:08] CPLX 4.5} 15. Qxe2 {[%emt 0:00:06] RECAPT} g6 {[%emt 0:06:42] [#] CPLX 2.7} 16. Ng3 $146 {[%emt 0:01:05] CPLX 2.9} ({Predecessor:} 16. g4 gxh5 17. Rhg1 Nd5 18. g5 Nf4 19. Qf3 Ng6 20. gxf6 Re6 21. Bg5 Bf8 22. Qd3 {1-0 (35) Sousa,A (2406)-Padeiro,J (2235) Evora 2021}) 16... Nc4 {[%emt 0:00:02] CPLX 2.4} (16... f5 $5 17. Qf3 $8 b4 18. cxb4 (18. Qxc6 $2 Rc8 $19) 18... Nd5 $15) 17. b3 {[%emt 0:11:09] CPLX 2.8 43 (Qe2-f3) (=13)} Nb6 {[%emt 0:44:59] MISSDEEP-Nc4xe3 56 (Nc4xe3) (=10)} (17... Nxe3 $15 18. fxe3 f5) 18. Qf3 $11 {[%emt 0:16:32] BESTDEEP} Nd5 {[%emt 0:01:35] [#] Hoping for ...Qa5. CPLX 2.4 24 (a7-a5) (=11)} 19. Bd2 $1 {[%emt 0:00:19] DEEPSTRONG} Rb8 {[%emt 0:27:29] CPLX 2.5 53 (a7-a5) (=15)} (19... a5 $14) 20. Kb1 {[%emt 0:05:48] CPLX 2.5 43 (h2-h4) (=13)} Rb6 {[%emt 0:03:33] CPLX 2.6 70 (a7-a5) (=19)} (20... a5 $14) 21. Rhe1 {[%emt 0:05:12] CPLX 2.6 68 (h2-h4) (=17)} ({Better is} 21. h4 $16) 21... Rxe1 $14 {[%emt 0:02:49] CPLX 2.8} 22. Rxe1 {[%emt 0:00:11] aiming for Ne4. RECAPT} Ra6 {[%emt 0:01:09] CPLX 2.4 98 (f6-f5) (=23)} (22... f5 $1 $14) 23. Rc1 {[%emt 0:06:08] CPLX 2.8 82 (Ng3-e4) (=20)} (23. Ne4 $16 Be7 24. Nc5 Bxc5 25. dxc5) 23... f5 {[%emt 0:00:24] CPLX 2.7 14 (Bd6-a3) (=23)} 24. c4 {[%emt 0:00:40] BESTDEEP} bxc4 {[%emt 0:02:51] EASY} 25. Rxc4 {[%emt 0:00:04] RECAPT} Qh4 {[%emt 0:00:38] CPLX 3.2 22 (Bd6-e7) (=21)} 26. Nf1 {[%emt 0:02:53][%cal Bg3f1,Bf1h2,Bh2f3][%mdl 32] CPLX 3.4 20 (h2-h3) (=18)} f4 {[%emt 0:00:21] CPLX 3.2 0 (Kg8-g7) (=20)} 27. Qe2 {[%emt 0:00:58] CPLX 3.0 33 (h2-h3) (=19)} Kg7 {[%emt 0:00:45] CPLX 3.2 49 (Qh4-f6) (=22)} (27... Qf6 $14) 28. h3 $16 {[%emt 0:02:11] BESTDEEP} Qf6 {[%emt 0:00:26] CPLX 2.9 17 (Ra6-b6) (=21)} 29. Qe4 {[%emt 0:00:22] CPLX 3.7 72 (Nf1-h2) (=20)} (29. Nh2 $16) 29... Rb6 {[%emt 0:00:34] CPLX 3.0 41 (Qf6-h4) (=22)} 30. Nh2 {[%emt 0:00:15] CPLX 2.8} Qg5 {[%emt 0:00:27] CPLX 2.8 48 (Qf6-h4) (=23)} ({Black should play} 30... Qh4) 31. Kb2 {[%emt 0:04:20] CPLX 3.0 44 (Nh2-g4) (=21)} f5 {[%emt 0:00:28] CPLX 3.9 22 (Nd5-f6) (=23)} 32. Qf3 {[%emt 0:04:03] BESTDEEP} Qe7 {[%emt 0:00:12] CPLX 3.6} 33. Qd3 {[%emt 0:02:29] CPLX 3.7 0 (Qf3-d1) (=19)} Nf6 {[%emt 0:00:46] CPLX 3.5 19 (Bd6-a3) (=22)} 34. Nf3 {[%emt 0:00:35] CPLX 3.0 0 (Qd3-c2) (=18)} Ne4 {[%emt 0:00:00] CPLX 3.0} 35. Be1 {[%emt 0:00:43] CPLX 3.7 10 (Qd3-c2) (=18)} g5 {[%emt 0:01:07] CPLX 3.6 34 (Kg7-h6) (=22)} 36. Ra4 {[%emt 0:00:49] CPLX 4.0 37 (Kb2-b1) (=19)} Qf7 {[%emt 0:00:31] CPLX 3.6 108 (c6-c5) (=25)} (36... c5 $16 37. Kb1 Rb8) 37. Qc4 {[%emt 0:01:03] CPLX 4.4 78 (h3-h4) (=21)} Qxc4 {[%emt 0:00:27] CPLX 4.7} 38. Rxc4 {[%emt 0:00:06] RECAPT} Kf6 {[%emt 0:00:15] CPLX 2.1} 39. Ra4 {[%emt 0:00:21] CPLX 2.2 24 (Nf3-e5) (=20)} a6 {[%emt 0:00:32] CPLX 2.2 109 (g5-g4) (=26)} (39... g4 $16 {keeps fighting.}) 40. Nd2 $18 {[%emt 0:01:41] CPLX 2.2} Nxd2 {[%emt 0:00:45] EASY} 41. Bxd2 {[%emt 0:00:03][%mdl 4096] Endgame KRB-KRB. RECAPT} Ke6 {[%emt 0:00:14] CPLX 2.0 11 (c6-c5) (=25)} 42. Ra5 {[%emt 0:01:43] Prevents c5. CPLX 2.0} Bc7 {[%emt 0:00:44] CPLX 2.0 32 (Rb6-b8) (=25)} 43. Kc3 {[%emt 0:00:40] CPLX 2.0 2 (Kb2-c2) (=18)} Rb5 {[%emt 0:00:34] CPLX 2.0 147 (Ke6-f6) (=28)} (43... Kf6 {is a better defense.} 44. Kd3 Ke6) 44. Rxa6 {[%emt 0:00:22] EASY} Kd5 {[%emt 0:00:01] CPLX 2.1} 45. Kd3 {[%emt 0:00:30] CPLX 2.2} Rb8 {[%emt 0:00:36] CPLX 2.3 26 (g5-g4) (=28)} 46. Ra7 {[%emt 0:00:23][%cal Ba6a7,Ba7e7,Be7e5,Be5f5][%mdl 32] BESTDEEP} Bb6 {[%emt 0:00:24] CPLX 2.5 137 (Bc7-d6) (=30)} 47. Re7 {[%emt 0:00:41] BESTDEEP. White is clearly winning.} Rd8 {[%emt 0:00:56] CPLX 2.5 68 (Rb8-g8) (=31)} 48. Re5+ {[%emt 0:00:19] EASY} Kd6 {[%emt 0:00:01] LEGAL} 49. Rxf5 {[%emt 0:00:15] CPLX 2.3} Ke6 {[%emt 0:00:18] CPLX 2.2} 50. Re5+ {[%emt 0:00:07] CPLX 2.7} Kf6 {[%emt 0:00:00] CPLX 2.2 81 (Ke6-f7) (=31)} 51. Bc3 {[%emt 0:00:21] CPLX 2.5} c5 {[%emt 0:00:09][%cal Rc5d4] EVAL 117 (Rd8-d7) (=33)} 52. d5 {[%emt 0:00:21] Weighted Error Value: White=0.18 (very precise) /Black=0.31} 1-0